fUSD/lending_fUSD_20250221
["ID","MTS","AMOUNT","RATE_DAILY","PERIOD"]
[353919630,1740144643154,-49029.68469848,0.000133,3]
[353919631,1740144643163,-200.0,0.00013316,2]
[353919632,1740144643174,-500.0,0.00013316,2]
[353919633,1740144643183,-2000.0,0.00013316,2]
[353919634,1740144643192,-500.0,0.00013316,2]
[353919635,1740144643201,-200.0,0.00013316,2]
[353919636,1740144643212,-2032.751,0.00013324,2]
[353919637,1740144643221,-196.991,0.00013324,2]
[353919638,1740144643231,-21768.56,0.00013324,2]
[353919639,1740144643240,-8806.4471,0.00013324,2]
[353919640,1740144643249,-349.731,0.00013324,2]
[353919641,1740144643259,-5963.1997,0.00013324,2]
[353919642,1740144643269,-6329.7358,0.00013324,2]
[353919643,1740144643278,-38893.77915843,0.00013384,3]
[353919644,1740144643288,-2265.87363376,0.0001339,10]
[353919645,1740144643298,-200.0,0.0001339,10]
[353919646,1740144643308,-735.0,0.000134,2]
[353919647,1740144643317,-748.0,0.000134,2]
[353919648,1740144643327,-498.7,0.00013414,2]
[353919649,1740144643336,-4353.6597996,0.00013414,2]
[353919650,1740144643346,-1125.7032805,0.00013414,2]
[353919651,1740144643355,-2529.5325605,0.00013414,2]
[353919652,1740144643367,-217.5672988,0.00013414,2]
[353919653,1740144643378,-1821.3947375,0.00013414,2]
[353919654,1740144643388,-3327.4340148,0.00013414,2]
[353919655,1740144643397,-607.5349249,0.00013414,2]
[353919656,1740144643407,-1313.52087338,0.00013423,3]
[353919657,1740144643417,-64656.79206255,0.00013423,2]
[353919658,1740144643429,-2599.444995,0.00013423,2]
[353919659,1740144643442,-874.30802895,0.00013423,2]
[353919660,1740144643453,-3851.88067642,0.00013423,2]
[353919661,1740144643480,-7806.74460825,0.00013423,2]
[353919662,1740144643492,-3103.3582,0.00013423,2]
[353919666,1740144645659,-155.88774719,0.00011099,2]
[353919667,1740144645668,-1009.0,0.00012713,2]
[353919668,1740144645678,-38373.14358281,0.00013423,2]
[353919669,1740144645712,-4933.7,0.00013423,2]
[353919670,1740144645775,-309.415,0.0001,2]
[353919671,1740144645787,-1340.95642857,0.0001,2]
[353919676,1740145064399,222.0,0.0002,120]
[353919678,1740145215922,-152.45,0.000139,31]
[353919679,1740145215954,-152.45,0.000139,31]
[353919680,1740145215983,-152.45,0.000139,31]
[353919681,1740145216013,-152.45,0.000139,31]
[353919682,1740145216041,-152.45,0.000139,31]
[353919683,1740145216070,-152.45,0.000139,31]
[353919684,1740145216098,-152.45,0.000139,31]
[353919685,1740145216602,-6943.98497442,0.00016,30]
[353919686,1740145217573,-26482.86502558,0.0001688,30]
[353919695,1740145831679,-158.33,9.686e-05,2]
[353919696,1740145831688,-550.0,0.0001,2]
[353919697,1740145831698,-567.7,0.00010426,2]
[353919698,1740145831707,-401.6109,0.00011033,2]
[353919699,1740145831716,-1381.76909134,0.00011999,2]
[353919700,1740145831725,-600.0,0.00012,2]
[353919701,1740145831735,-1000.0,0.00012081,2]
[353919702,1740145831743,-1471.09356559,0.00012081,2]
[353919703,1740145831755,-641.45995871,0.00012081,2]
[353919704,1740145831765,-150.0,0.00012099,2]
[353919705,1740145831774,-250.0,0.00012103,2]
[353919706,1740145831783,-151.96,0.00012103,2]
[353919707,1740145831792,-3967.4156,0.00012112,2]
[353919708,1740145831801,-4946.39408129,0.00012212,2]
[353919709,1740145831813,-7375.42431631,0.00012212,2]
[353919710,1740145831822,-200.0,0.00012305,2]
[353919711,1740145831832,-1449.57448369,0.00012313,2]
[353919712,1740145831843,-1330.85,0.00012313,2]
[353919713,1740145831854,-9345.65551631,0.00012313,2]
[353919714,1740145831863,-190.68,0.00012314,2]
[353919715,1740145831872,-200.0,0.000126,4]
[353919716,1740145831881,-150.0,0.00012672,2]
[353919717,1740145831890,-567.7,0.0001269,2]
[353919718,1740145831899,-500.0,0.000127,4]
[353919719,1740145831908,-700.0,0.000128,4]
[353919720,1740145831917,-220.0,0.00012853,2]
[353919721,1740145831927,-1000.0,0.000129,4]
[353919722,1740145831937,-500.0,0.00013044,2]
[353919723,1740145831946,-500.0,0.00013044,2]
[353919724,1740145831956,-150.0,0.00013055,2]
[353919725,1740145831966,-639.0,0.00013055,2]
[353919726,1740145831975,-569.0,0.00013055,2]
[353919727,1740145831984,-168.371,0.00013055,2]
[353919728,1740145831993,-150.0,0.00013055,2]
[353919729,1740145832003,-150.0,0.00013145,2]
[353919730,1740145832013,-150.0,0.00013228,2]
[353919731,1740145832021,-1626.201,0.00013283,2]
[353919732,1740145832030,-150.0,0.00013311,2]
[353919733,1740145832040,-500.0,0.00013317,2]
[353919734,1740145832049,-2000.0,0.00013317,2]
[353919735,1740145832058,-500.0,0.00013317,2]
[353919736,1740145832068,-200.0,0.00013317,2]
[353919737,1740145832077,-165.79443839,0.00013323,2]
[353919738,1740145832087,-489.5998,0.00013323,2]
[353919739,1740145832096,-339.3764,0.00013323,2]
[353919740,1740145832105,-1901.667,0.00013323,2]
[353919741,1740145832116,-7500.0,0.00013324,2]
[353919742,1740145832126,-174.12386343,0.00013324,2]
[353919743,1740145832135,-583.53213286,0.00013324,2]
[353919744,1740145832147,-2871.91620931,0.00013324,2]
[353919745,1740145832156,-2871.91620928,0.00013355,2]
[353919746,1740145832165,-150.0,0.00013379,2]
[353919747,1740145832175,-2871.91620928,0.00013385,2]
[353919748,1740145832185,-2012.47,0.000134,2]
[353919749,1740145832194,-242.0,0.00013401,2]
[353919750,1740145832206,-2871.91620928,0.00013416,2]
[353919751,1740145832216,-300.0,0.00013423,2]
[353919752,1740145832225,-93492.21065422,0.00013423,2]
[353919753,1740145832235,-500.0,0.00013423,2]
[353919754,1740145832245,-367.88012,0.00013423,2]
[353919755,1740145832254,-64446.05292999,0.00013423,2]
[353919756,1740145832264,-370126.30559326,0.00013423,3]
[353919757,1740145832276,-774.34181465,0.00013423,3]
[353919758,1740145832316,-3270.61822637,0.00013423,3]
[353919759,1740145832334,-40368.98370804,0.00013423,3]
[353919760,1740145832346,-2113.28286315,0.00013423,3]
[353919781,1740145837626,-2292.68037219,0.00013423,3]
[353919782,1740145837638,-453.6895887,0.00013423,3]
[353919784,1740145837649,-897.34318907,0.00013423,3]
[353919789,1740145837719,-1418.98397657,0.00013423,3]
[353919790,1740145837731,-4841.01281286,0.00013423,3]
[353919791,1740145837806,-602.44732007,0.00013423,3]
[353919794,1740145839898,-500.0,0.00013422,2]
[353919795,1740145839908,-500.0,0.00013422,2]
[353919796,1740145839918,-500.0,0.00013422,2]
[353919797,1740145839929,-500.0,0.00013422,2]
[353919798,1740145839939,-250.0,0.00013422,2]
[353919799,1740145839949,-11554.69133876,0.00013423,3]
[353919800,1740145839965,-1976.56975214,0.00013423,3]
[353919801,1740145839976,-4793.6447409,0.00013423,3]
[353919802,1740145839997,-5683.34149518,0.00013423,3]
[353919803,1740145840008,-1336.78335151,0.00013423,3]
[353919804,1740145840085,-585.50720326,0.00013423,3]
[353919805,1740145840097,-299208.00096275,0.00013423,3]
[353919806,1740145840167,-302.2027,0.00013423,3]
[353919841,1740145842903,-1159.96200823,0.00013423,3]
[353919843,1740145842914,-14285.92213661,0.00013423,3]
[353919845,1740145842929,-6627.35717783,0.00013423,3]
[353919846,1740145842961,-1668.02297108,0.00013423,3]
[353919847,1740145842973,-993.12736041,0.00013423,3]
[353919848,1740145842984,-143303.52261763,0.00013423,3]
[353919849,1740145843003,-345.45950319,0.00013423,3]
[353919850,1740145843015,-320.31951352,0.00013423,3]
[353919851,1740145843026,-937.97971815,0.00013423,3]
[353919852,1740145843045,-370.13638,0.00013423,3]
[353919853,1740145843062,-1167188.46558255,0.00013423,3]
[353919854,1740145843074,-2699.828592,0.00013423,3]
[353919861,1740145845747,-506.85,0.00013423,2]
[353919862,1740145845757,-4467.97106968,0.00013423,3]
[353919863,1740145845776,-6862.54441108,0.00013423,3]
[353919864,1740145845787,-584.80860266,0.00013423,3]
[353919865,1740145845799,-1930.10992698,0.00013423,3]
[353919866,1740145845941,-4186.05554208,0.00013423,3]
[353919883,1740147031927,-280.35137859,0.00010363,2]
[353919884,1740147032039,-315.76862141,0.00010363,2]
[353919885,1740147032049,-33.90904661,0.00011988,2]
[353919886,1740147032139,-966.09095339,0.00011988,2]
[353919887,1740147032149,-247.68,0.0001202,2]
[353919888,1740147032159,-250.0,0.00012045,2]
[353919889,1740147032168,-36.22909661,0.00012119,2]
[353919890,1740147032254,-480.39090339,0.00012119,2]
[353919891,1740147032264,-1620.93,0.00012119,2]
[353919892,1740147032273,-500.0,0.00012165,2]
[353919893,1740147032283,-503.45,0.00012224,2]
[353919894,1740147032293,-200.0,0.00012276,2]
[353919895,1740147032304,-499.72,0.00012283,2]
[353919896,1740147032313,-493.4,0.00012283,2]
[353919897,1740147032323,-503.09,0.00012283,2]
[353919898,1740147032332,-505.35,0.00012283,2]
[353919899,1740147032342,-496.98,0.00012283,2]
[353919900,1740147032351,-499.54,0.00012283,2]
[353919902,1740147032361,-500.84,0.00012283,2]
[353919904,1740147032371,-508.45,0.00012283,2]
[353919905,1740147032380,-496.13,0.00012283,2]
[353919906,1740147032390,-496.5,0.00012283,2]
[353919907,1740147032399,-490.55,0.00012283,2]
[353919908,1740147032409,-501.65,0.00012283,2]
[353919909,1740147032419,-509.18,0.00012283,2]
[353919910,1740147032428,-6.63549661,0.00012283,2]
[353919914,1740147037776,-503.03450339,0.00012283,2]
[353919915,1740147037786,-505.72,0.00012283,2]
[353919916,1740147037795,-494.17,0.00012283,2]
[353919917,1740147037804,-499.0,0.00012283,2]
[353919918,1740147037814,-491.17,0.00012283,2]
[353919919,1740147037823,-428.95734026,0.00012283,2]
[353919920,1740147037842,-66.10265974,0.00012283,2]
[353919921,1740147037851,-452.79805886,0.00012283,2]
[353919922,1740147037902,-38.26194114,0.00012283,2]
[353919923,1740147037916,-493.68,0.00012283,2]
[353919924,1740147037925,-496.14,0.00012283,2]
[353919925,1740147037934,-2739.19705249,0.00012283,2]
[353919926,1740147037947,-7808.23294751,0.00012283,2]
[353919927,1740147037956,-150.0,0.00012304,2]
[353919928,1740147037965,-150.0,0.00012415,2]
[353919929,1740147037974,-499.62,0.0001243,2]
[353919930,1740147037984,-503.13,0.00012434,2]
[353919931,1740147037994,-501.79,0.0001244,2]
[353919932,1740147038003,-498.35,0.00012448,2]
[353919933,1740147038014,-509.59,0.00012458,2]
[353919934,1740147038023,-509.63,0.0001247,2]
[353919935,1740147038032,-492.32,0.00012487,2]
[353919936,1740147038042,-1158.85,0.00012497,2]
[353919937,1740147038051,-150.0,0.00012497,2]
[353919938,1740147038061,-498.08,0.00012497,2]
[353919939,1740147038070,-497.99,0.00012497,2]
[353919940,1740147038080,-504.24,0.00012497,2]
[353919941,1740147038089,-497.89,0.00012497,2]
[353919942,1740147038099,-504.53,0.00012497,2]
[353919943,1740147038108,-504.75,0.00012497,2]
[353919944,1740147038117,-493.14,0.00012497,2]
[353919945,1740147038126,-507.96,0.00012497,2]
[353919946,1740147038135,-495.4,0.00012497,2]
[353919947,1740147038145,-493.68,0.00012497,2]
[353919948,1740147038154,-5521.0,0.000125,5]
[353919949,1740147038163,-596.12,0.00012626,2]
[353919950,1740147038172,-393.52967651,0.00012672,2]
[353919951,1740147038181,-220.0,0.00012824,2]
[353919952,1740147038190,-150.0,0.00012865,2]
[353919953,1740147038200,-432.31286095,0.00012956,2]
[353919955,1740147038209,-151.39,0.00012997,2]
[353919956,1740147038218,-151.36,0.00012997,2]
[353919957,1740147038227,-152.66,0.00012997,2]
[353919959,1740147038237,-500.0,0.00013044,2]
[353919960,1740147038247,-500.0,0.00013044,2]
[353919962,1740147038256,-1000.0,0.00013141,2]
[353919964,1740147038265,-499.71,0.00013168,2]
[353919966,1740147038274,-1000.0,0.00013182,2]
[353919968,1740147038285,-246.239,0.00013243,2]
[353919970,1740147038294,-1596.839,0.0001326,2]
[353919972,1740147038304,-1000.0,0.00013304,2]
[353919974,1740147038313,-500.0,0.00013317,2]
[353919976,1740147038323,-1311.31370231,0.00013317,2]
[353919978,1740147038334,-688.68629769,0.00013317,2]
[353919980,1740147038344,-500.0,0.00013317,2]
[353919982,1740147038353,-200.0,0.00013317,2]
[353919984,1740147038362,-315.7794,0.00013323,2]
[353919986,1740147038371,-262.014,0.00013323,2]
[353919988,1740147038381,-1000.0,0.00013323,2]
[353919991,1740147038391,-629.0940398,0.00013324,2]
[353919992,1740147038400,-303.40878445,0.00013324,2]
[353919994,1740147038409,-165.10599161,0.00013324,2]
[353919996,1740147038418,-4711.90282103,0.00013324,2]
[353919999,1740147038435,-4312.73493,0.00013324,2]
[353920003,1740147038457,-505.60343928,0.00013324,2]
[353920005,1740147038467,-544.38170658,0.00013324,2]
[353920007,1740147038479,-521.74533198,0.00013324,2]
[353920165,1740147039973,-1438.54768027,0.00013324,2]
[353920166,1740147040002,-3539.2143317,0.00013324,2]
[353920167,1740147040013,-344.9507673,0.00013324,2]
[353920176,1740147040099,-144.63509186,0.00013324,2]
[353920178,1740147040109,-432.3049,0.00013324,2]
[353920180,1740147040118,-30.70675819,0.00013324,2]
[353920183,1740147040138,-494.62734181,0.00013324,2]
[353920185,1740147040148,-5000.0,0.00013324,2]
[353920187,1740147040157,-150.0,0.00013325,2]
[353920189,1740147040166,-490.88,0.00013344,2]
[353920191,1740147040176,-150.0,0.00013365,2]
[353920193,1740147040186,-460.56905536,0.00013366,2]
[353920195,1740147040196,-242.0,0.00013372,2]
[353920197,1740147040206,-504.09,0.00013423,2]
[353920199,1740147040215,-250.0,0.00013423,2]
[353920201,1740147040225,-1639.9001,0.00013423,2]
[353920203,1740147040235,-500.0,0.00013423,2]
[353920205,1740147040247,-500.0,0.00013423,2]
[353920207,1740147040258,-159.547,0.00013424,2]
[353920208,1740147040268,-500.0,0.00013424,2]
[353920210,1740147040279,-620.48906351,0.00013424,2]
[353920212,1740147040288,-500.0,0.00013424,2]
[353920214,1740147040297,-633.38554389,0.00013424,2]
[353920216,1740147040307,-500.0,0.00013424,2]
[353920218,1740147040316,-500.0,0.00013424,2]
[353920220,1740147040326,-500.0,0.00013424,2]
[353920222,1740147040335,-500.0,0.00013424,2]
[353920224,1740147040344,-501.64887135,0.00013424,2]
[353920226,1740147040353,-501.21918191,0.00013424,2]
[353920228,1740147040362,-500.0,0.00013424,2]
[353920230,1740147040372,-501.9998096,0.00013424,2]
[353920232,1740147040383,-500.0,0.00013424,2]
[353920234,1740147040392,-41.86240115,0.00013424,2]
[353920237,1740147040411,-458.13759885,0.00013424,2]
[353920239,1740147040421,-500.0,0.00013424,2]
[353920241,1740147040430,-501.80682621,0.00013424,2]
[353920243,1740147040441,-500.0,0.00013424,2]
[353920245,1740147040450,-500.0,0.00013424,2]
[353920247,1740147040459,-500.0,0.00013424,2]
[353920249,1740147040468,-535.71920986,0.00013424,2]
[353920251,1740147040477,-274.72867272,0.00013424,2]
[353920253,1740147040489,-226.01341897,0.00013424,2]
[353920255,1740147040501,-500.0,0.00013424,2]
[353920257,1740147040510,-500.0,0.00013424,2]
[353920259,1740147040520,-500.0,0.00013424,2]
[353920261,1740147040529,-500.0,0.00013424,2]
[353920263,1740147040539,-477.90446196,0.00013424,2]
[353920265,1740147040548,-300.0,0.00013424,2]
[353920267,1740147040558,-500.0,0.00013424,2]
[353920269,1740147040567,-429.44675851,0.00013424,2]
[353920271,1740147040580,-70.55324149,0.00013424,2]
[353920273,1740147040590,-500.0,0.00013424,2]
[353920275,1740147040600,-500.0,0.00013424,2]
[353920277,1740147040609,-500.0,0.00013424,2]
[353920279,1740147040619,-169.53816537,0.00013424,2]
[353920282,1740147040630,-330.46183463,0.00013424,2]
[353920284,1740147040640,-500.0,0.00013424,2]
[353920286,1740147040649,-500.0,0.00013424,2]
[353920288,1740147040659,-448.96729582,0.00013424,2]
[353920334,1740147041108,-51.03270418,0.00013424,2]
[353920336,1740147041118,-501.88513766,0.00013424,2]
[353920338,1740147041127,-500.0,0.00013424,2]
[353920340,1740147041136,-500.0,0.00013424,2]
[353920341,1740147041146,-291.70620789,0.00013424,2]
[353920343,1740147041155,-500.0,0.00013424,2]
[353920345,1740147041165,-500.0,0.00013424,2]
[353920346,1740147041174,-500.0,0.00013424,2]
[353920348,1740147041184,-500.0,0.00013424,2]
[353920350,1740147041194,-500.0,0.00013424,2]
[353920352,1740147041204,-500.0,0.00013424,2]
[353920354,1740147041214,-502.05839729,0.00013424,2]
[353920355,1740147041223,-165.93244026,0.00013424,2]
[353920357,1740147041233,-290.09431592,0.00013424,2]
[353920359,1740147041248,-209.90568408,0.00013424,2]
[353920361,1740147041258,-500.0,0.00013424,2]
[353920362,1740147041267,-500.0,0.00013424,2]
[353920364,1740147041277,-500.0,0.00013424,2]
[353920366,1740147041287,-500.0,0.00013424,2]
[353920368,1740147041297,-500.0,0.00013424,2]
[353920370,1740147041306,-500.0,0.00013424,2]
[353920371,1740147041315,-500.0,0.00013424,2]
[353920373,1740147041324,-269.58138954,0.00013424,2]
[353920375,1740147041336,-230.41861046,0.00013424,2]
[353920377,1740147041346,-189.35377925,0.00013424,2]
[353920379,1740147041357,-310.64622075,0.00013424,2]
[353920380,1740147041367,-500.0,0.00013424,2]
[353920382,1740147041377,-500.0,0.00013424,2]
[353920384,1740147041385,-345.93898313,0.00013424,2]
[353920386,1740147041398,-154.06101687,0.00013424,2]
[353920388,1740147041408,-500.0,0.00013424,2]
[353920390,1740147041418,-500.0,0.00013424,2]
[353920391,1740147041427,-500.0,0.00013424,2]
[353920393,1740147041436,-500.0,0.00013424,2]
[353920395,1740147041445,-500.0,0.00013424,2]
[353920397,1740147041454,-500.0,0.00013424,2]
[353920399,1740147041463,-500.0,0.00013424,2]
[353920400,1740147041472,-500.0,0.00013424,2]
[353920402,1740147041481,-500.0,0.00013424,2]
[353920404,1740147041491,-500.0,0.00013424,2]
[353920405,1740147041503,-500.0,0.00013424,2]
[353920407,1740147041513,-500.0,0.00013424,2]
[353920409,1740147041522,-500.0,0.00013424,2]
[353920411,1740147041531,-500.0,0.00013424,2]
[353920413,1740147041541,-500.0,0.00013424,2]
[353920414,1740147041550,-500.0,0.00013424,2]
[353920416,1740147041560,-500.0,0.00013424,2]
[353920418,1740147041570,-500.0,0.00013424,2]
[353920420,1740147041579,-292.30266683,0.00013424,2]
[353920422,1740147041593,-207.69733317,0.00013424,2]
[353920424,1740147041602,-500.0,0.00013424,2]
[353920425,1740147041611,-500.0,0.00013424,2]
[353920427,1740147041620,-500.0,0.00013424,2]
[353920429,1740147041629,-500.0,0.00013424,2]
[353920431,1740147041639,-500.0,0.00013424,2]
[353920433,1740147041649,-500.0,0.00013424,2]
[353920435,1740147041658,-500.0,0.00013424,2]
[353920436,1740147041667,-500.0,0.00013424,2]
[353920438,1740147041676,-198.65671305,0.00013424,2]
[353920440,1740147041688,-301.34328695,0.00013424,2]
[353920442,1740147041697,-508.82943676,0.00013424,2]
[353920444,1740147041705,-341.372144,0.00013424,2]
[353920446,1740147041717,-158.627856,0.00013424,2]
[353920447,1740147041726,-501.42351033,0.00013424,2]
[353920449,1740147041736,-500.0,0.00013424,2]
[353920451,1740147041745,-500.0,0.00013424,2]
[353920453,1740147041755,-500.0,0.00013424,2]
[353920455,1740147041764,-500.0,0.00013424,2]
[353920456,1740147041773,-518.09486876,0.00013424,2]
[353920458,1740147041782,-500.0,0.00013424,2]
[353920460,1740147041791,-500.0,0.00013424,2]
[353920462,1740147041801,-500.0,0.00013424,2]
[353920464,1740147041811,-500.0,0.00013424,2]
[353920466,1740147041820,-500.0,0.00013424,2]
[353920468,1740147041829,-500.0,0.00013424,2]
[353920469,1740147041838,-500.0,0.00013424,2]
[353920471,1740147041847,-500.0,0.00013424,2]
[353920473,1740147041856,-500.0,0.00013424,2]
[353920475,1740147041866,-500.0,0.00013424,2]
[353920477,1740147041875,-500.0,0.00013424,2]
[353920479,1740147041885,-500.0,0.00013424,2]
[353920481,1740147041895,-500.0,0.00013424,2]
[353920482,1740147041906,-500.0,0.00013424,2]
[353920484,1740147041917,-500.0,0.00013424,2]
[353920486,1740147041927,-500.0,0.00013424,2]
[353920488,1740147041936,-500.0,0.00013424,2]
[353920490,1740147041946,-500.0,0.00013424,2]
[353920492,1740147041954,-500.0,0.00013424,2]
[353920494,1740147041964,-500.0,0.00013424,2]
[353920495,1740147041974,-500.0,0.00013424,2]
[353920497,1740147041985,-500.0,0.00013424,2]
[353920499,1740147041995,-500.0,0.00013424,2]
[353920501,1740147042005,-500.0,0.00013424,2]
[353920503,1740147042015,-500.0,0.00013424,2]
[353920505,1740147042025,-500.0,0.00013424,2]
[353920507,1740147042034,-500.0,0.00013424,2]
[353920509,1740147042043,-500.0,0.00013424,2]
[353920511,1740147042053,-500.0,0.00013424,2]
[353920512,1740147042062,-500.0,0.00013424,2]
[353920514,1740147042072,-500.0,0.00013424,2]
[353920516,1740147042081,-500.47526069,0.00013424,2]
[353920518,1740147042090,-324.0299105,0.00013424,2]
[353920520,1740147042100,-500.0,0.00013424,2]
[353920521,1740147042109,-500.0,0.00013424,2]
[353920523,1740147042118,-500.0,0.00013424,2]
[353920525,1740147042128,-500.0,0.00013424,2]
[353920527,1740147042139,-237.90665674,0.00013424,2]
[353920529,1740147042149,-500.0,0.00013424,2]
[353920531,1740147042160,-500.0,0.00013424,2]
[353920533,1740147042169,-500.0,0.00013424,2]
[353920535,1740147042178,-500.0,0.00013424,2]
[353920536,1740147042189,-500.0,0.00013424,2]
[353920538,1740147042199,-502.2019396,0.00013424,2]
[353920540,1740147042209,-500.0,0.00013424,2]
[353920542,1740147042218,-500.0,0.00013424,2]
[353920544,1740147042227,-500.0,0.00013424,2]
[353920546,1740147042236,-192.60839774,0.00013424,2]
[353920547,1740147042245,-500.0,0.00013424,2]
[353920549,1740147042256,-500.0,0.00013424,2]
[353920551,1740147042265,-192.42040881,0.00013424,2]
[353920553,1740147042275,-500.0,0.00013424,2]
[353920555,1740147042284,-504.63745516,0.00013424,2]
[353920557,1740147042293,-500.0,0.00013424,2]
[353920558,1740147042302,-500.0,0.00013424,2]
[353920560,1740147042311,-500.0,0.00013424,2]
[353920562,1740147042320,-500.0,0.00013424,2]
[353920564,1740147042329,-500.0,0.00013424,2]
[353920566,1740147042340,-500.0,0.00013424,2]
[353920568,1740147042350,-500.0,0.00013424,2]
[353920570,1740147042359,-500.0,0.00013424,2]
[353920572,1740147042368,-500.0,0.00013424,2]
[353920574,1740147042378,-500.0,0.00013424,7]
[353920576,1740147042387,-500.0,0.00013424,2]
[353920578,1740147042397,-317.57908057,0.00013424,2]
[353920580,1740147042406,-500.0,0.00013424,2]
[353920582,1740147042415,-500.0,0.00013424,2]
[353920584,1740147042424,-501.14532639,0.00013424,2]
[353920586,1740147042434,-301.04115706,0.00013424,2]
[353920588,1740147042444,-500.0,0.00013424,2]
[353920590,1740147042452,-500.0,0.00013424,2]
[353920592,1740147042461,-505.00291152,0.00013424,2]
[353920594,1740147042470,-500.0,0.00013424,2]
[353920596,1740147042480,-500.0,0.00013424,2]
[353920597,1740147042490,-500.0,0.00013424,2]
[353920598,1740147042499,-501.45830176,0.00013424,2]
[353920599,1740147042509,-503.56512095,0.00013424,2]
[353920600,1740147042518,-500.0,0.00013424,2]
[353920601,1740147042528,-500.0,0.00013424,2]
[353920602,1740147042538,-500.0,0.00013424,2]
[353920603,1740147042547,-500.0,0.00013424,2]
[353920604,1740147042556,-500.0,0.00013424,2]
[353920605,1740147042566,-500.0,0.00013424,2]
[353920606,1740147042575,-500.0,0.00013424,2]
[353920607,1740147042585,-500.0,0.00013424,2]
[353920608,1740147042594,-500.0,0.00013424,2]
[353920609,1740147042603,-500.0,0.00013424,2]
[353920610,1740147042613,-500.0,0.00013424,2]
[353920611,1740147042622,-500.0,0.00013424,2]
[353920613,1740147042632,-199.77530916,0.00013424,2]
[353920615,1740147042641,-500.0,0.00013424,2]
[353920617,1740147042650,-500.0,0.00013424,2]
[353920619,1740147042659,-506.31583452,0.00013424,2]
[353920621,1740147042668,-500.0,0.00013424,2]
[353920623,1740147042677,-500.0,0.00013424,2]
[353920625,1740147042686,-500.0,0.00013424,2]
[353920627,1740147042695,-500.0,0.00013424,2]
[353920629,1740147042704,-500.0,0.00013424,2]
[353920631,1740147042713,-500.0,0.00013424,2]
[353920632,1740147042722,-626.11,0.00013424,2]
[353920634,1740147042732,-500.0,0.00013424,2]
[353920636,1740147042742,-500.0,0.00013424,2]
[353920638,1740147042753,-500.0,0.00013424,2]
[353920640,1740147042762,-500.0,0.00013424,2]
[353920642,1740147042772,-500.0,0.00013424,2]
[353920645,1740147042781,-500.0,0.00013424,2]
[353920648,1740147042791,-500.0,0.00013424,2]
[353920652,1740147042800,-500.0,0.00013424,2]
[353920655,1740147042810,-501.03222539,0.00013424,2]
[353920657,1740147042819,-500.0,0.00013424,2]
[353920659,1740147042829,-500.0,0.00013424,2]
[353920661,1740147042838,-500.0,0.00013424,2]
[353920663,1740147042847,-500.0,0.00013424,2]
[353920667,1740147042857,-500.0,0.00013424,2]
[353920670,1740147042866,-500.0,0.00013424,2]
[353920673,1740147042875,-500.0,0.00013424,2]
[353920676,1740147042884,-500.0,0.00013424,2]
[353920678,1740147042895,-500.0,0.00013424,2]
[353920680,1740147042907,-500.0,0.00013424,2]
[353920682,1740147042918,-500.0,0.00013424,2]
[353920684,1740147042928,-500.0,0.00013424,2]
[353920700,1740147043078,-500.0,0.00013424,2]
[353920703,1740147043088,-500.0,0.00013424,2]
[353920705,1740147043098,-500.0,0.00013424,2]
[353920707,1740147043107,-500.0,0.00013424,2]
[353920709,1740147043117,-500.0,0.00013424,2]
[353920711,1740147043126,-500.0,0.00013424,2]